{"text_format":"1","workbook":"xlsx","n_sheets":3,"sheets":["🏠 Page de garde","🌸 Le nécessaire pour bébé","📞 A prévenir"],"not_rendered":{"charts":0,"images":34,"macros":1,"external_links":0,"defined_names":6,"comments":0,"pivot_tables":0},"unopened":[],"bounds":{"document_bytes":16777216,"sheet_cells":100000,"rows_first":2000,"rows_last":500,"rows_between":2000,"halvings":0,"cell_chars":16384,"cell_head_chars":4096},"cells_cut":0,"cells_raw":0,"read":"whole","date_system":"1900"}

{"sheet":"🏠 Page de garde","index":0,"n_rows":86,"n_cols":4,"rows_kept":86,"cut":false,"hidden":false,"merged":[[80,1,80,7],[81,1,81,7],[82,1,82,7],[55,2,55,7],[72,2,72,7],[73,2,73,7],[77,1,77,7],[79,1,79,7],[45,1,47,1],[49,1,52,1],[70,1,73,1],[28,2,28,7],[21,2,21,7],[24,2,24,7],[30,2,30,7],[36,2,36,7],[35,2,35,7],[38,2,38,7],[45,2,45,7],[46,2,46,7],[51,2,51,7],[60,2,60,7],[62,2,62,7],[63,2,63,7],[7,1,7,7],[22,2,22,7],[25,2,25,7],[26,2,26,7],[141,0,141,10],[126,0,126,12],[131,0,132,10],[136,0,136,10],[84,1,84,7],[85,1,85,7],[40,1,43,1],[110,0,110,11],[111,0,111,11],[54,1,68,1],[21,1,28,1],[30,1,38,1]]}
[]
[]
[]
[]
[]
[]
[null,"Bienvenue"]
[null,"Félicitations pour cette belle aventure !\nCe fichier a été conçu pour vous aider à préparer sereinement l’arrivée de votre bébé bassé sur l'expérience d'une toute jeune maman et en suivant vos progrès à votre rythme."]
[]
[null," Ce que vous trouverez dans ce fichier"]
[null,"✅ Des check-lists interactives (sac maternité, chambre, soins, vêtements, etc.)"]
[null,"✅ Un calcul automatique du pourcentage d’avancement pour chaque catégorie"]
[null,"✅ Une zone “à acheter / à faire” pour ne rien oublier"]
[null,"✅ Une check-list des proches à prévenir à la naissance "]
[null,"✅ Un espace pour rédiger le message d’annonce à copier-coller "]
[null,"✅ Un design pastel & apaisant, pour rendre vos préparatifs encore plus agréables"]
[null,"✅ Une impression en un clic"]
[]
[null,"Fini les oublis ou le stress : tout est prévu 💗"]
[]
[null,"Conseils d’utilisation"]
[null,"Format du fichier","✨ Vous pouvez aussi utiliser ce fichier en ligne via One drive!  "]
[null,null,"Ce fichier est au format Microsoft Excel prenant en charge les macros. Il s’ouvre directement sur ordinateur (Windows ou Mac) avec Excel."]
[]
[null,null,"💡 Si vous n’avez pas Excel :"]
[null,null,"→ Vous pouvez télécharger gratuitement *Excel Online* via votre compte Microsoft (https://www.office.com). "]
[null,null,"→ Ou utiliser la version mobile Excel App sur téléphone ou tablette (iOS / Android).  "]
[]
[null,null,"⚠️ Pour éviter toute perte de formule ou de mise en page, il est recommandé de ne pas l’ouvrir dans Google Sheets."]
[]
[null,"Drive","Pratique si vous souhaitez le remplir depuis votre téléphone/tablette ou partager avec le co-parent. 💕"]
[null,null,"   1- Connectez-vous à votre compe OneDrive (Microsoft Outlook)."]
[null,null,"   2- Cliquez sur “Créer ou charger” → “Chargement de fichier”.  "]
[null,null,"   3-  Sélectionnez ce fichier et cliquer sur \"Ouvrir\"."]
[null,null,"   4- Une fois le fichier importé cliquer dessus."]
[null,null,"   5- Celui-ci s'ouvre directement sur Excel en ligne. Toutes vos modifications sont           enregistrées automatiquement et se synchronise sur votre espace. "]
[null,null,"   6- Pour une visulaisation plus agréable vous pouvez cliquer sur le crayon en haut           à droite \"Edition\" puis \"Ouvrir dans la version bureau\" pour avoir accès aux                 macros d'impression."]
[]
[null,null,"Vous pourrez ensuite le modifier librement et cocher vos listes depuis votre ordinateur, tablette ou votre smartphone."]
[]
[null,"Utilisation des listes","Aller dans la catégorie correspondant à chaque thème."]
[null,null,"Cochez les éléments achetés."]
[null,null,"Le pourcentage d’avancement se mettra à jour automatiquement."]
[null,null,"Vous pouvez personnaliser les listes selon vos besoins à l'infini."]
[]
[null,"Décompte","Indiquez votre date prévue d’accouchement sous la case \"Mon bébé est pévu pour le \" ou format XX / XX / XXXX"]
[null,null,"Le tableau calcule automatiquement le nombre de jours restants avant l'arrivée de bébé."]
[null,null,"Simple, pratique et motivant ! "]
[]
[null,"Vétements","Indiquez vos besoins (ex : 6 bodies) dans la colonne \"Besoins\"."]
[null,null,"Indiquez vos achats dans la colonne \"Déjà\"."]
[null,null,"Le tableau calcule automatiquement l’avancement et coche la tâche dès que le besoin est rempli."]
[null,null,"Parfait pour éviter les doublons et savoir exactement où vous en êtes. 🌿"]
[]
[null,"Impression","  1-  Cliquez sur l’icône “Imprimante”. Une fenêtre s’ouvre automatiquement."]
[null,null,"  2-  Choisissez le nom du fichier et l’endroit où vous souhaitez enregistrer le                       document au format PDF. (Par défaut, il s’enregistrera sur votre Bureau.)"]
[null,null,"  3-  Ouvrez le PDF puis imprimez-le autant de fois que vous le souhaitez."]
[null,null,"  4-   Répétez l’opération dès que vous mettez à jour vos listes."]
[]
[null,null,"⚠️ Important : Impression disponible uniquement depuis un ordinateur"]
[null,null,"La version Excel en ligne (Drive / OneDrive en mode navigateur) ne prend pas en charge les macros."]
[null,null,"Pour imprimer vos listes mises à jour depuis le Drive, vous avez 2 options :"]
[null,null,"   👉 Option 1 : Ouvrir le fichier en version Bureau depuis votre Drive - (voir étape 6 de la catégorie « OneDrive » : Cela ouvre l’Excel installé sur votre ordinateur, avec toutes les fonctionnalités.)"]
[null,null,"   👉 Option 2 : Télécharger votre fichier en version locale - Vos modifications ne seront pas synchronisées avec votre téléphone ou votre tablette."]
[null,null,null,"  Ouvrez votre fichier dans Excel en ligne (dans le navigateur)."]
[null,null,null,"  Cliquez sur \"Fichier\" (en haut à gauche)."]
[null,null,null,"  Puis sur \"Créer une copie\"."]
[null,null,null,"  Et enfin sur \"Télécharger une copie\"."]
[null,null,null,"  Votre fichier sera disponible dans votre dossier \"Téléchargements\"."]
[]
[null,"L'onglet \n\"à prévenir\"","Complétér la liste des personnes à prévenir en avance."]
[null,null,"Cochez les personnes mises au courant de ce bel événement."]
[null,null,"Une petite formule calcul automatiquement votre pourcentage d’avancement pour n’oublier personne et éviter tout impair le jour J."]
[null,null,"En complément, une petite zone est prévue pour réfléchir à tête reposée au petit message à envoyé ! Pas de stress, un petit message bien écrit et en un petit copier/coller et c'est fait."]
[]
[]
[null,"Mentions importantes"]
[null," Veuillez noter que, en raison de la nature numérique de ce produit, toutes les ventes sont finales et aucun remboursement ne sera effectué."]
[null,"🔒 Ce fichier est destiné à un usage strictement personnel."]
[null,"🛍️ Il ne peut pas être copié, revendu, ni partagé publiquement (y compris sur les réseaux sociaux, sites web, groupes ou forums). Toute copie, distribution ou revente non autorisée est strictement interdite et sera signalée."]
[null,"📜 Ce modèle est protégé par le droit d’auteur – Toute copie, distribution ou revente non autorisée est strictement interdite et sera signalée aux autorités compétentes – Tout contrevenant s'expose à des poursuites judiciaires et à des sanctions civiles ou pénales. Ces feuilles de calcul sont protégés par le droit d’auteur \"Les Excels d'Estelle\". Toute reproduction, revente, distribution ou utilisation à des fins commerciales sans mon autorisation écrite explicite constitue une infraction à la législation sur le copyright (Article L.122-4 du Code de la Propriété Intellectuelle)."]
[null,"💗 Merci de respecter le travail de création – cela me permet de continuer à proposer des outils utiles et esthétiques pour les futures mamans !"]
[null,"Si vous pensez qu’un proche pourrait bénéficier de ce modèle, orientez-le vers notre page produit pour qu’il puisse acheter sa propre copie. Vous pouvez également me contacter pour offrir ce modèle en cadeau et j'enverrais le lien de téléchargement directement à son adresse e-mail."]
[null,"🌷 Besoin d’aide ? N'hésitez pas à m'envoyer à mail à l'adresse : excelestelle@hotmail.com"]
[null,"📩 Pour toute question ou suggestion d’amélioration, vous pouvez me contacter via votre espace de commande Etsy (ou par e-mail)."]
[null,"© 2025 – Les Excel d'Estelle – Modèle original, usage personnel uniquement."]

{"sheet":"🌸 Le nécessaire pour bébé","index":1,"n_rows":114,"n_cols":14,"rows_kept":114,"cut":false,"hidden":false,"merged":[[93,8,93,9],[94,8,94,9],[113,1,113,13],[102,8,102,9],[103,8,103,9],[104,8,104,9],[105,8,105,9],[106,8,106,9],[107,8,107,9],[99,1,104,1],[105,1,110,1],[99,7,110,7],[108,8,108,9],[109,8,109,9],[110,8,110,9],[99,8,99,9],[100,8,100,9],[101,8,101,9],[95,8,95,9],[83,1,83,13],[84,1,84,13],[93,1,98,1],[87,7,92,7],[93,7,98,7],[86,8,86,9],[87,8,87,9],[88,8,88,9],[89,8,89,9],[86,5,86,6],[86,12,86,13],[96,8,96,9],[97,8,97,9],[98,8,98,9],[90,8,90,9],[46,12,46,13],[44,8,44,13],[45,1,45,2],[45,3,45,4],[45,5,45,6],[45,8,45,9],[45,10,45,11],[45,12,45,13],[44,1,44,6],[46,1,46,2],[46,3,46,4],[46,5,46,6],[46,8,46,9],[46,10,46,11],[5,12,5,13],[5,1,6,1],[8,1,10,1],[11,1,13,1],[1,1,1,13],[4,3,4,4],[4,5,4,6],[4,10,4,11],[4,12,4,13],[90,1,92,1],[88,1,89,1],[5,3,5,4],[5,5,5,6],[5,10,5,11],[15,1,17,1],[18,1,20,1],[22,1,24,1],[25,1,27,1],[43,2,43,3],[91,8,91,9],[92,8,92,9]]}
[]
[]
[]
[]
[null,"Le prénom de bébé \n(ou son petit surnom)",null,"Mobilier et gros accessoires bébé",null,"Petits accessoires bébé",null,null,null,null,"A commander / Acheter",null,"A faire"]
[null,"Titi",null,{"$f":"COUNTIF(E7:E43,TRUE)/COUNTIF(D7:D43,\"<>\")","v":0},null,{"$f":"COUNTIF(G7:G43,TRUE)/COUNTIF(F7:F43,\"<>\")","v":0},null,null,null,null,{"$f":"COUNTIF(L7:L43,TRUE)/COUNTIF(K7:K43,\"<>\")","v":0},null,{"$f":"COUNTIF(N7:N43,TRUE)/COUNTIF(M7:M43,\"<>\")","v":0}]
[null,null,null,"Cosy ",false,"Drap housse /Allaises x 4",false,null,null,null,"Veilleuse",false,"Laver plaid maison ",false]
[null,null,null,"Poussette",false,"Liniment",false,null,null,null,"Bavoirs",false,"Aller chercher homeopathie",false]
[null,{"$f":"B6& \" est pévu pour le \"","v":"Titi est pévu pour le "},null,"Base Isofix ",false,"Veilleuse bruit blanc",false,null,null,null,null,false,"Aller chercher bas de contention",false]
[null,null,null,"Nacelle",false,"Gel lavant",false,null,null,null,null,false,null,false]
[null,null,null,"Parc",false,"Doseur lait *4",false,null,null,null,null,false,"Ranger la chambre",false]
[null,"2026-06-20",null,"Tapis parc",false,"Eryplast (entretien fesses)",false,null,null,null,null,false,"Sac à langer ",false]
[null,null,null,"Transat up and down",false,"Cicalfate (réparation fesses)",false,null,null,null,null,false,"Valise de maternité",false]
[null,null,null,"Lit ",false,"Couches",false,null,null,null,null,false,null,false]
[null,null,null,"Cododo",false,"Carré coton",false,null,null,null,null,false,null,false]
[null,"Nous allons nous \nrencontré dans ",null,"Baignoire + réducteur",false,"Sérum phy",false,null,null,null,null,false,null,false]
[null,null,null,"Tapis sol",false,"Couverture fond de parc",false,null,null,null,null,false,"Brumisateur ",false]
[null,null,null,"Chauffe biberon / Bib expresso",false,"Rideaux placards",false,null,null,null,null,false,"Sucettes",false]
[null,{"$f":"DATEDIF(TODAY(),B12,\"d\")&\" jours\"","v":"82 jours"},null,"Veilleuse",false,"Compratiement couches",false,null,null,null,null,false,"Jus de pomme",false]
[null,null,null,"Commande à langer ",false,"Tétine *2 + attache",false,null,null,null,null,false,"Pomme pote",false]
[null,null,null,"Matelas à langer ",false,"Carte noire/blanc éveil",false,null,null,null,null,false,"Madeleines",false]
[null,null,null,"Nid ange pour le cosy",false,"Eau (pour alimentation nourisson)",false,null,null,null,null,false,null,false]
[null,"Mon stade d'avancement des préparatifs",null,"Sac à langer ",false,"Biberon + tétine taille 0 et 1 x 4",false,null,null,null,null,false,null,false]
[null,null,null,"Baby phone ",false,"Langes *3",false,null,null,null,null,false,null,false]
[null,null,null,"Matelas lit",false,"Couverture toute douce",false,null,null,null,null,false,"Rattachement bébé / mutuelle",false]
[null,{"$f":"(COUNTIFS(G7:G43,TRUE)+COUNTIFS(L7:L43,TRUE)+COUNTIFS(N7:N43,TRUE)+COUNTIFS(E7:E43,TRUE)+COUNTIFS(G48:G82,TRUE)+COUNTIFS(J48:J82,TRUE)+COUNTIFS(L48:L82,TRUE)+COUNTIFS(N48:N82,TRUE)+COUNTIFS(G88:G111,TRUE)+COUNTIFS(E48:E82,TRUE)+COUNTIFS(C48:C82,TRUE)+COUNTIFS(N88:N111,TRUE))/(COUNTIFS(D7:D43,\"<>\")+COUNTIFS(F7:F43,\"<>\")+COUNTIFS(K7:K43,\"<>\")+COUNTIFS(M7:M43,\"<>\")+COUNTIFS(B48:B82,\"<>\")+COUNTIFS(D48:D82,\"<>\")+COUNTIFS(F48:F82,\"<>\")+COUNTIFS(I48:I82,\"<>\")+COUNTIFS(K48:K82,\"<>\")+COUNTIFS(M48:M82,\"<>\")+COUNTIFS(D88:D111,\"<>\")+COUNTIFS(K88:K111,\"<>\"))","v":0},null,"Compartimenteur valise",false,"Thermomètre",false,null,null,null,null,false,"Reconnaissance anticipée",false]
[null,null,null,"Biberons - 2 petits + 2 moyens",false,"Mouche bébé manuel",false,null,null,null,null,false,"Attestaion de domicile",false]
[null,null,null,"Compartimenteur tiroir",false,"Protection base isofix siège voiture",false,null,null,null,null,false,null,false]
[null,null,null,"Chaise haute",false,"Déco chambre",false,null,null,null,null,false,null,false]
[null,null,null,"Doumo / cale bébé / Couffin",false,"Pouss'mouss eau ",false,null,null,null,null,false,null,false]
[null,null,null,"Portage",false,null,false,null,null,null,null,false,"Envoie arrêt travail  papa",false]
[null,null,null,"Lit parapluie",false,null,false,null,null,null,null,false,null,false]
[null,null,null,"Poubelle (à hauteur)",false,null,false,null,null,null,null,false,null,false]
[null,null,null,null,false,null,false,null,null,null,null,false,null,false]
[null,null,null,null,false,null,false,null,null,null,null,false,null,false]
[null,null,null,null,false,null,false,null,null,null,"KITS ESSAIS :",false,null,false]
[null,null,null,null,false,null,false,null,null,null,"Joone",false,null,false]
[null,null,null,null,false,null,false,null,null,null,"La marque en moins",false,null,false]
[null,null,null,null,false,null,false,null,null,null,"Jho",false,null,false]
[null,null,null,null,false,null,false,null,null,null,"Livret bleu",false,null,false]
[null,null,null,null,false,null,false,null,null,null,null,false,null,false]
[null,null,null,null,false,null,false,null,null,null,null,false,null,false]
[null,null,null,null,false,null,false,null,null,null,null,false,null,false]
[]
[]
[null,"Bébé",null,"Maman",null,"Papa",null,null,"Bébé",null,"Maman",null,"Papa"]
[null,{"$f":"COUNTIF(C48:C82,TRUE)/COUNTIF(B48:B82,\"<>\")","v":0},null,{"$f":"COUNTIF(E48:E82,TRUE)/COUNTIF(D48:D82,\"<>\")","v":0},null,{"$f":"COUNTIF(G48:G82,TRUE)/COUNTIF(F48:F82,\"<>\")","v":0},null,null,{"$f":"COUNTIF(J48:J82,TRUE)/COUNTIF(I48:I82,\"<>\")","v":0},null,{"$f":"COUNTIF(L48:L82,TRUE)/COUNTIF(K48:K82,\"<>\")","v":0},null,{"$f":"COUNTIF(N48:N82,TRUE)/COUNTIF(M48:M82,\"<>\")","v":0}]
[null,"1 body cache coeur - 0 et 1",false,"Dossier de suivi",false,"Monnaie",false,null,"4 brassières laine",false,"Culottes always 1 paquet",false,"Monnaie",false]
[null,"1 pyjama ouverture devant - 0 et 1",false,"Pièce identité",false,"Bouteille eau ",false,null,"2 bonnets",false,"3 hauts amples",false,"Bouteille eau ",false]
[null,"1 pair chaussette ",false,"Carte vitale",false,"Gâteaux",false,null,"6 body cache cœur",false,"Gilet cache cœur +  Sweat rose",false,"Gâteaux",false]
[null,"1 gilet laine/brassière",false,"Mutuelle",false,"Chargeur",false,null,"6 pyjamas",false,"Pyjama",false,"Chargeur",false]
[null,"1 bonnet",false,"Reconnaissance anticipée",false,"Tee shirt",false,null,"5 paires de chaussettes",false,"Tong",false,"Plaid",false]
[null,"1 gigoteuse",false,"Carte de groupe sanguin",false,"Sweat",false,null,"6 bavoirs",false,"Serviette + cheveux ",false,"Coussin ",false]
[null,"Thermomètre",false,"Brumisateur",false,"Caleçon",false,null,"2 sortie bain (1m*1m)",false,"Tapis de bain ",false,"Porte bébé",false]
[null,"2 couches",false,"Vêtement confortable",false,"Ecouteurs",false,null,"1 paquet couches",false,"Coussin grossesse",false,"Sac de couchage ",false]
[null,"Tétine",false,"Chargeur ",false,null,false,null,"1 gigoteuse",false,"Plaid",false,"Pyjama",false]
[null,"Moufle ",false,"Musique/écouteurs/enceinte",false,null,false,null,"Manteau ou nid ange",false,"Madeleines",false,"Tenue de rechange ",false]
[null,"Couverture douce pour peau à peau",false,"Sucette",false,null,false,null,"Carrés cotons",false,"Mouchoirs",false,"Serviette de bain ",false]
[null,null,false,"Serviette de bain",false,null,false,null,"Brosse à cheveux",false,"Soin intime + douchette",false,null,false]
[null,null,false,"Coussin grossesse",false,null,false,null,"Sérum phy",false,"Gel douche + shamppoing",false,null,false]
[null,null,false,"Plaid",false,null,false,null,"Gel lavant",false,"Brosse à dent + dentifrice",false,null,false]
[null,null,false,"Jus de pomme",false,null,false,null,"Thermomètre",false,"Rallonge/multiprise",false,null,false]
[null,null,false,"Espadrilles / chaussons",false,null,false,null,"Thermomètre bain",false,"Crème hydratante",false,null,false]
[null,null,false,"Stylo",false,null,false,null,"Liniment",false,"Mascara + anti cernes",false,null,false]
[null,null,false,"Baume à lèvres",false,null,false,null,"Cycalfate",false,"Brosse à cheveux",false,null,false]
[null,null,false,"Elastique",false,null,false,null,"Eryplast",false,"Elastiques",false,null,false]
[null,null,false,"Chausettes",false,null,false,null,"Mouffles",false,"Sac linge sale",false,null,false]
[null,null,false,"Bas de contention",false,null,false,null,"Langes",false,"Rouleau PQ",false,null,false]
[null,null,false,"Culottes absorbantes *5",false,null,false,null,"Doudou",false,"Serviette pour les mains",false,null,false]
[null,null,false,"Pomm' pote",false,null,false,null,"Pousse mouss eau ",false,"Bouteille eau",false,null,false]
[null,null,false,"Madeleines",false,null,false,null,"Cosy",false,"2 soutifs dont brassière",false,null,false]
[null,null,false,"Homéopathie montée lait",false,null,false,null,"Nid ange",false,"Ma robe jolie",false,null,false]
[null,null,false,"Veilleuse",false,null,false,null,null,false,"Oreiller",false,null,false]
[null,null,false,"Bouteille eau",false,null,false,null,null,false,"Boulles quies ",false,null,false]
[null,null,false,"Mouchoirs",false,null,false,null,null,false,"Sèche cheveux",false,null,false]
[null,null,false,null,false,null,false,null,null,false,null,false,null,false]
[null,null,false,null,false,null,false,null,null,false,null,false,null,false]
[null,null,false,null,false,null,false,null,null,false,null,false,null,false]
[null,null,false,null,false,null,false,null,null,false,null,false,null,false]
[null,null,false,null,false,null,false,null,null,false,null,false,null,false]
[null,null,false,null,false,null,false,null,null,false,null,false,null,false]
[null,null,false,null,false,null,false,null,null,false,null,false,null,false]
[]
[]
[null,{"$f":"(COUNTIF(N88:N111,TRUE)+COUNTIF(G88:G111,TRUE))/(COUNTIF(K88:K111,\"<>\")+COUNTIF(D88:D111,\"<>\"))","v":0}]
[]
[null,null,"Taille","Besoin","Déjà","Manque",null,null,"Taille",null,"Besoin","Déjà","Manque"]
[null,"Bonnets",0,2,null,{"$f":"ABS(D88-E88)","v":2},{"$f":"IF(E88=D88,TRUE,FALSE)","v":false},"Body\ncache\ncœur",0,null,10,null,{"$f":"ABS(K88-L88)","v":10},{"$f":"IF(L88=K88,TRUE,FALSE)","v":false}]
[null,"Bavoirs","Grands",15,null,{"$f":"ABS(D89-E89)","v":15},{"$f":"IF(E89=D89,TRUE,FALSE)","v":false},null,"1 mois",null,10,null,{"$f":"ABS(K89-L89)","v":10},false]
[null,null,"Triangles",15,null,{"$f":"ABS(D90-E90)","v":15},{"$f":"IF(E90=D90,TRUE,FALSE)","v":false},null,"3 mois",null,10,null,{"$f":"ABS(K90-L90)","v":10},false]
[null,"Chaussettes","14/15",5,null,5,false,null,"6 mois",null,11,null,{"$f":"ABS(K91-L91)","v":11},false]
[null,null,"16/17",5,null,5,false,null,"9 mois",null,12,null,12,false]
[null,null,"18/19",5,null,5,false,null,"1 an",null,10,null,10,false]
[null,"Pantalon",0,1,null,{"$f":"ABS(D94-E94)","v":1},{"$f":"IF(E94=D94,TRUE,FALSE)","v":false},"Pyjama\nouverture \ndevant",0,null,2,null,{"$f":"ABS(K94-L94)","v":2},false]
[null,null,"1 mois",1,null,1,false,null,"1 mois",null,10,null,10,false]
[null,null,"3 mois",2,null,2,false,null,"3 mois",null,10,null,10,false]
[null,null,"6 mois",5,null,5,false,null,"6 mois",null,5,null,5,false]
[null,null,"9 mois",5,null,5,false,null,"9 mois",null,5,null,5,false]
[null,null,"1 an",5,null,5,false,null,"1 an",null,5,null,5,false]
[null,"Haut/Tee-shirt/Pull",0,1,null,1,false,"Gigoteuse","0 - 3 mois TOG 1",null,1,null,1,false]
[null,null,"1 mois",1,null,1,false,null,"0 - 3 mois TOG 2",null,1,null,1,false]
[null,null,"3 mois",2,null,{"$f":"ABS(D102-E102)","v":2},false,null,"0- 3 mois TOG 3",null,1,null,1,false]
[null,null,"6 mois",5,null,5,false,null,"0 - 6 mois TOG 1",null,1,null,1,false]
[null,null,"9 mois",5,null,5,false,null,"0 - 6 mois TOG 2",null,1,null,1,false]
[null,null,"1 an",5,null,5,false,null,"0 - 6 mois TOG 3",null,1,null,1,false]
[null,"Autre (robe, salopettes …)",0,1,null,{"$f":"ABS(D106-E106)","v":1},false,null,"6 - 18 mois TOG 1",null,1,null,1,false]
[null,null,"1 mois",1,null,{"$f":"ABS(D107-E107)","v":1},false,null,"6 - 18 mois TOG 2",null,1,null,1,false]
[null,null,"3 mois",1,null,1,false,null,"6 - 18 mois TOG 3",null,1,null,1,false]
[null,null,"6 mois",1,null,1,false,null,"18 - 36 mois TOG 1",null,1,null,1,false]
[null,null,"9 mois",1,null,1,false,null,"18 - 36 mois TOG 2",null,1,null,1,false]
[null,null,"1 an",1,null,1,false,null,"18 - 36 mois TOG 3",null,1,null,1,false]
[]
[]
[null,"© 2025 – Les Excel d'Estelle – Modèle original, usage personnel uniquement."]

{"sheet":"📞 A prévenir","index":2,"n_rows":97,"n_cols":5,"rows_kept":97,"cut":false,"hidden":false,"merged":[[1,1,1,2],[2,1,2,2],[2,4,14,4],[96,1,96,4]]}
[]
[null,"Personnes à prévenir ",null,null,"Petit message "]
[null,{"$f":"COUNTIF(C5:C33,TRUE)/COUNTIF(B5:B33,\"<>\")","v":0},null,null,"Coucou tout le monde !\nJe viens de pointer le bout de mon nez à 00h00 ! Je me présente : je m’appelle XXX, je pèse X  kg et je mesure X cm ! Maman et moi nous portons bien et Papa prend soin de nous. \nÀ très vite pour se rencontrer !"]
[null,"Personne","Fait"]
[null,"Papi ",false]
[null,"Mamie",false]
[null,"Papa et Maman ",false]
[null,"Tonton ",false]
[null,"Tata",false]
[null,"Collègue",false]
[null,"Sage femme",false]
[null,null,false]
[null,null,false]
[null,null,false]
[null,null,false]
[null,null,false]
[null,null,false]
[null,null,false]
[null,null,false]
[null,null,false]
[null,null,false]
[null,null,false]
[null,null,false]
[null,null,false]
[null,null,false]
[null,null,false]
[null,null,false]
[null,null,false]
[null,null,false]
[null,null,false]
[null,null,false]
[null,null,false]
[null,null,false]
[null,null,false]
[null,null,false]
[null,null,false]
[null,null,false]
[null,null,false]
[null,null,false]
[null,null,false]
[null,null,false]
[null,null,false]
[null,null,false]
[null,null,false]
[null,null,false]
[null,null,false]
[null,null,false]
[null,null,false]
[null,null,false]
[null,null,false]
[null,null,false]
[null,null,false]
[null,null,false]
[null,null,false]
[null,null,false]
[null,null,false]
[null,null,false]
[null,null,false]
[null,null,false]
[null,null,false]
[null,null,false]
[null,null,false]
[null,null,false]
[null,null,false]
[null,null,false]
[null,null,false]
[null,null,false]
[null,null,false]
[null,null,false]
[null,null,false]
[null,null,false]
[null,null,false]
[null,null,false]
[null,null,false]
[null,null,false]
[null,null,false]
[null,null,false]
[null,null,false]
[null,null,false]
[null,null,false]
[null,null,false]
[null,null,false]
[null,null,false]
[null,null,false]
[null,null,false]
[null,null,false]
[null,null,false]
[null,null,false]
[null,null,false]
[null,null,false]
[null,null,false]
[null,null,false]
[null,null,false]
[null,null,false]
[null,null,false]
[]
[null,"© 2025 – Les Excel d'Estelle – Modèle original, usage personnel uniquement."]